bitfinex/quotes_BTCUSD_20241028
["timestamp","ask_amount","ask_price","bid_price","bid_amount"]
[1730133906979,0.21764207,68979.0,68972.0,0.005]
[1730133907220,5e-05,68980.0,68977.0,0.08498929]
[1730133907504,5e-05,68980.0,68979.0,0.15550381]
[1730133907943,5e-05,68980.0,68979.0,0.3133737]
[1730133908169,5e-05,68980.0,68979.0,0.31047481]
[1730133908390,5e-05,68980.0,68979.0,0.30047481]
[1730133908610,5e-05,68980.0,68979.0,0.53101568]
[1730133908846,0.00115723,68995.0,68988.0,0.144952]
[1730133909089,0.00115723,68995.0,68988.0,0.3804451]
[1730133909825,0.00115723,68995.0,68988.0,0.2354931]
[1730133910067,0.00115723,68995.0,68988.0,0.15050381]
[1730133910307,1.03482032,68989.0,68988.0,0.15050381]
[1730133910528,1.03482032,68989.0,68979.0,0.014]
[1730133910758,0.077,68987.0,68980.0,0.36814588]
[1730133911009,0.077,68987.0,68979.0,0.014]
[1730133911010,0.08998929,68985.0,68979.0,0.014]
[1730133911262,0.08998929,68985.0,68971.0,0.21764207]
[1730133911263,0.005,68983.0,68971.0,0.21764207]
[1730133911505,0.144969,68980.0,68978.0,0.21764207]
[1730133911740,0.03482032,68979.0,68972.0,0.15050381]
[1730133911984,0.03482032,68978.0,68972.0,0.15050381]
[1730133912264,0.03482032,68977.0,68972.0,0.15050381]
[1730133912515,0.03482032,68976.0,68972.0,0.15050381]
[1730133912762,0.03482032,68975.0,68972.0,0.15050381]
[1730133912974,0.03482032,68974.0,68972.0,0.15050381]
[1730133913217,0.03482032,68973.0,68972.0,0.15850381]
[1730133914406,0.03482032,68973.0,68972.0,0.15050381]
[1730133914888,0.03482032,68973.0,68972.0,0.16150381]
[1730133915349,0.04389347,68973.0,68972.0,0.15050381]
[1730133915591,0.04389347,68973.0,68972.0,0.16350381]
[1730133916768,0.04398788,68973.0,68972.0,0.16350381]
[1730133917015,0.04398773,68973.0,68972.0,0.16350381]
[1730133917233,0.04398773,68973.0,68972.0,0.2484931]
[1730133917493,0.02238116,68984.0,68974.0,0.005]
[1730133917732,0.02238116,68984.0,68976.0,0.15050381]
[1730133917934,0.21764207,68988.0,68976.0,0.15050381]
[1730133918146,0.145769,68991.0,68976.0,0.15050381]
[1730133918365,0.02238116,68990.0,68976.0,0.15050381]
[1730133918583,0.02238116,68987.0,68976.0,0.15050381]
[1730133918804,0.01344817,68986.0,68976.0,0.15050381]
[1730133919021,0.02238116,68988.0,68976.0,0.15050381]
[1730133919247,0.01344853,68987.0,68976.0,0.15050381]
[1730133919463,0.02238116,68985.0,68976.0,0.30947981]
[1730133919673,0.03582969,68984.0,68976.0,0.16450381]
[1730133919939,0.01344853,68983.0,68976.0,0.16450381]
[1730133920155,0.02238116,68984.0,68976.0,0.16450381]
[1730133920156,0.01344853,68982.0,68976.0,0.16450381]
[1730133920375,1.144951,68989.0,68976.0,0.16450381]
[1730133920588,0.02244163,68981.0,68976.0,0.16450381]
[1730133920798,0.01347982,68980.0,68976.0,0.16450381]
[1730133921009,0.02244163,68981.0,68976.0,0.16450381]
[1730133921229,0.01347963,68980.0,68976.0,0.15050381]
[1730133921451,0.02244163,68980.0,68976.0,0.15050381]
[1730133921672,0.01348926,68979.0,68976.0,0.16450381]
[1730133921885,0.01348926,68978.0,68976.0,0.16450381]
[1730133922123,0.02244163,68980.0,68976.0,0.15050381]
[1730133922333,0.02244163,68982.0,68977.0,0.00289924]
[1730133922553,0.01349209,68981.0,68978.0,0.15050381]
[1730133922792,0.01349209,68980.0,68978.0,0.15050381]
[1730133922998,0.02244163,68982.0,68978.0,0.15050381]
[1730133923212,0.035934,68981.0,68979.0,0.00289912]
[1730133923437,0.144955,68987.0,68980.0,0.15050381]
[1730133923664,0.03509327,68986.0,68980.0,0.15050381]
[1730133923913,0.03509327,68985.0,68981.0,0.21764207]
[1730133924123,0.02249463,68983.0,68982.0,0.15050381]
[1730133924347,0.02249463,68986.0,68982.0,0.15050381]
[1730133924598,1.0,68989.0,68982.0,0.15050381]
[1730133924599,0.02249463,68984.0,68982.0,0.32013109]
[1730133924836,0.01349567,68983.0,68982.0,0.32013109]
[1730133925549,0.02256643,68983.0,68982.0,0.32013109]
[1730133925775,0.02256643,68983.0,68982.0,0.33413109]
[1730133926445,0.00907076,68983.0,68982.0,0.47909609]
[1730133926677,0.02257575,68983.0,68982.0,0.47909609]
[1730133927551,0.02257575,68983.0,68982.0,0.92563816]
[1730133927552,0.01868678,68983.0,68982.0,0.92563816]
[1730133927771,0.01868678,68983.0,68982.0,0.70999609]
[1730133927988,0.01868678,68983.0,68982.0,0.72399609]
[1730133928199,1.0,68989.0,68988.0,0.149952]
[1730133928410,1.0,68989.0,68988.0,0.47008309]
[1730133929044,1.0,68989.0,68988.0,0.31957928]
[1730133929483,1.01351355,68989.0,68988.0,0.31957928]
[1730133930375,1.0135134,68989.0,68988.0,0.31957928]
[1730133930597,1.0135134,68989.0,68988.0,0.33357928]
[1730133931030,1.0135134,68989.0,68988.0,0.163952]
[1730133931244,1.0135134,68989.0,68988.0,0.149952]
[1730133931677,1.0135134,68989.0,68988.0,0.163952]
[1730133932107,1.0135134,68989.0,68988.0,0.165952]
[1730133932324,1.0135134,68989.0,68988.0,0.163952]
[1730133932641,1.0135134,68989.0,68988.0,0.149952]
[1730133933189,1.0135134,68989.0,68988.0,0.261952]
[1730133933190,1.01351603,68989.0,68988.0,0.261952]
[1730133933410,1.01351577,68989.0,68988.0,0.261952]
[1730133933631,0.83247173,68989.0,68988.0,0.486452]
[1730133933850,0.49385161,68989.0,68988.0,0.486452]
[1730133934073,0.49385161,68989.0,68988.0,0.500452]
[1730133934573,0.49385161,68989.0,68988.0,0.486452]
[1730133934805,0.49385161,68989.0,68988.0,0.500452]
[1730133935255,0.49385161,68989.0,68988.0,0.486452]
[1730133935718,0.49385161,68989.0,68988.0,0.500452]
[1730133936172,0.49385161,68989.0,68988.0,0.490452]
[1730133937787,0.48885161,68989.0,68988.0,0.490452]
[1730133939669,0.47533584,68989.0,68988.0,0.490452]
[1730133940114,0.47533584,68989.0,68988.0,0.265952]
[1730133940384,0.47533584,68989.0,68988.0,0.255952]
[1730133940385,0.48884749,68989.0,68988.0,0.255952]
[1730133940610,0.51046367,68989.0,68988.0,0.148952]
[1730133941074,0.51953338,68989.0,68988.0,0.148952]
[1730133941521,0.5195332,68989.0,68988.0,0.134952]
[1730133941996,0.5195332,68989.0,68988.0,0.148952]
[1730133942438,0.51128667,68989.0,68988.0,0.148952]
[1730133943104,0.52035623,68989.0,68988.0,0.134952]
[1730133943562,0.52035623,68989.0,68988.0,0.148952]
[1730133944209,0.52035623,68989.0,68988.0,0.134952]
[1730133944428,0.52035623,68989.0,68988.0,1.134952]
[1730133944652,0.52035623,68989.0,68988.0,1.148952]
[1730133944653,0.47615884,68989.0,68988.0,1.148952]
[1730133944866,0.52040234,68989.0,68988.0,1.148952]
[1730133945754,0.52041701,68989.0,68988.0,1.014]
[1730133946279,0.54297333,68989.0,68988.0,1.158952]
[1730133946483,0.52041701,68989.0,68988.0,1.158952]
[1730133946917,0.52041701,68989.0,68988.0,1.014]
[1730133947366,0.52043275,68989.0,68988.0,1.014]
[1730133948248,0.60373275,68989.0,68988.0,1.014]
[1730133950269,0.74868275,68989.0,68988.0,1.014]
[1730133950514,0.73961245,68989.0,68988.0,1.014]
[1730133950738,0.74868327,68989.0,68988.0,1.014]
[1730133950959,0.74870493,68989.0,68988.0,1.014]
[1730133951418,0.73963409,68989.0,68988.0,1.014]
[1730133951897,0.90926137,68989.0,68988.0,1.014]
[1730133952145,1.09958221,68989.0,68988.0,1.014]
[1730133952366,1.09555277,68989.0,68988.0,1.014]
[1730133952819,1.09555277,68989.0,68988.0,1.0]
[1730133953273,1.09555277,68989.0,68988.0,1.014]
[1730133953502,1.21901748,68989.0,68988.0,0.7724]
[1730133953734,1.21901748,68989.0,68988.0,0.5168]
[1730133953735,1.20205277,68989.0,68988.0,0.5168]
[1730133953997,1.21082463,68989.0,68988.0,0.2752]
[1730133954230,1.21082463,68989.0,68988.0,0.0346]
[1730133954231,1.14212844,68989.0,68988.0,0.0346]
[1730133954469,1.14012844,68989.0,68988.0,0.0336]
[1730133954708,1.14929323,68989.0,68988.0,0.0336]
[1730133954941,1.01231802,68989.0,68988.0,0.0336]
[1730133955395,1.01531802,68989.0,68988.0,0.0346]
[1730133956128,1.01531802,68989.0,68988.0,0.0156]
[1730133956351,1.01531802,68989.0,68988.0,0.0146]
[1730133956352,1.01231802,68989.0,68988.0,0.0146]
[1730133956596,1.16482183,68989.0,68988.0,0.0156]
[1730133957257,1.16282183,68989.0,68988.0,0.0146]
[1730133957714,1.14210619,68989.0,68988.0,0.0156]
[1730133958642,1.1420614,68989.0,68988.0,0.0156]
[1730133958861,1.31168868,68989.0,68988.0,0.0156]
[1730133959075,0.509961,68984.0,68983.0,0.001646]
[1730133959301,0.73913789,68984.0,68983.0,0.001646]
[1730133959938,0.72562436,68984.0,68983.0,0.001646]
[1730133960153,0.55599708,68984.0,68983.0,0.001646]
[1730133960368,0.72762436,68984.0,68983.0,0.002646]
[1730133961672,0.70319913,68984.0,68983.0,0.002646]
[1730133961900,0.72751133,68984.0,68983.0,0.002646]
[1730133962324,0.87801514,68984.0,68983.0,0.002646]
[1730133965075,0.72751133,68984.0,68983.0,0.002646]
[1730133966377,0.75023023,68984.0,68983.0,0.002646]
[1730133966602,0.76372549,68984.0,68983.0,0.002646]
[1730133967072,0.74100659,68984.0,68983.0,0.002646]
[1730133967727,0.73900659,68984.0,68983.0,0.001646]
[1730133967949,0.9005104,68984.0,68983.0,0.002646]
[1730133968172,0.9025104,68984.0,68983.0,0.002646]
[1730133968605,0.9230217,68984.0,68983.0,0.002646]
[1730133969274,0.9230217,68984.0,68983.0,0.001646]
[1730133969275,0.88949533,68984.0,68983.0,0.001646]
[1730133969515,0.88949533,68984.0,68983.0,0.002646]
[1730133969782,0.90349533,68984.0,68983.0,0.002646]
[1730133970240,0.90349533,68984.0,68982.0,0.6056624]
[1730133970241,0.261963,68983.0,68982.0,0.6056624]
[1730133970452,0.47187005,68983.0,68982.0,0.6056624]
[1730133970677,0.4943802,68983.0,68982.0,0.5476764]
[1730133970889,0.4943802,68983.0,68982.0,0.4317044]
[1730133970890,0.47187005,68983.0,68982.0,0.4317044]
[1730133971161,0.47187005,68983.0,68982.0,0.3737184]
[1730133971810,0.47187005,68983.0,68982.0,0.26650407]
[1730133972043,0.47187005,68983.0,68982.0,0.20851807]
[1730133972921,0.47187005,68983.0,68982.0,0.04563355]
[1730133973140,0.47187005,68983.0,68973.0,0.001646]
[1730133973141,0.409982,68974.0,68973.0,0.001646]
[1730133973388,0.70393392,68974.0,68973.0,0.001646]
[1730133973615,0.73906951,68974.0,68973.0,0.001646]
[1730133974258,0.015,68959.0,68951.0,0.21764207]
[1730133974481,0.37558682,68959.0,68951.0,0.21764207]
[1730133974708,0.150028,68952.0,68951.0,0.21764207]
[1730133974940,0.145047,68943.0,68942.0,0.21764207]
[1730133975188,0.15856069,68943.0,68942.0,0.21764207]
[1730133975412,0.145051,68941.0,68940.0,0.0761]
[1730133975646,0.15856469,68941.0,68940.0,0.0761]
[1730133977284,0.15856469,68941.0,68934.0,0.1568]
[1730133977285,0.145062,68936.0,68934.0,0.2385]
[1730133977578,0.01351369,68936.0,68934.0,0.2385]
[1730133978002,0.15857569,68936.0,68934.0,0.2385]
[1730133979090,0.18021196,68936.0,68934.0,0.2385]
[1730133980196,0.18121196,68936.0,68934.0,0.2385]
[1730133980634,0.18021196,68936.0,68934.0,0.2385]
[1730133981078,0.19021196,68936.0,68934.0,0.2385]
[1730133981967,0.19021196,68936.0,68920.0,0.21764207]
[1730133982633,0.35983924,68936.0,68920.0,0.21764207]
[1730133983069,0.34983924,68936.0,68920.0,0.21764207]
[1730133983289,0.36066873,68936.0,68920.0,0.21764207]
[1730133983506,0.38320025,68936.0,68920.0,0.21764207]
[1730133983973,0.22457297,68936.0,68920.0,0.21764207]
[1730133984194,0.39456512,68936.0,68920.0,0.21764207]
[1730133984424,0.32588364,68936.0,68920.0,0.21764207]
[1730133984640,0.36054428,68936.0,68920.0,0.21764207]
[1730133984867,0.38762008,68936.0,68920.0,0.21764207]
[1730133985107,0.37408301,68936.0,68920.0,0.21764207]
[1730133985576,0.20409086,68936.0,68927.0,0.21764207]
[1730133986029,0.21382025,68936.0,68935.0,0.082342]
[1730133986260,0.20509086,68936.0,68935.0,0.082342]
[1730133986728,0.20509086,68936.0,68935.0,0.083842]
[1730133987646,0.20509086,68936.0,68935.0,0.003142]
[1730133988291,0.29727653,68936.0,68935.0,0.003142]
[1730133988511,0.21009086,68936.0,68935.0,0.003142]
[1730133989595,0.32009086,68936.0,68935.0,0.003142]
[1730133990540,0.32009086,68936.0,68921.0,0.21764207]
[1730133990541,0.145091,68922.0,68921.0,0.21764207]
[1730133990759,0.18028954,68922.0,68921.0,0.21764207]
[1730133990973,0.145095,68920.0,68919.0,0.001642]
[1730133991187,0.18029354,68920.0,68919.0,0.001642]
[1730133993041,0.39793561,68920.0,68919.0,0.001642]
[1730133993259,0.18029354,68920.0,68919.0,0.001642]
[1730133993487,0.151095,68920.0,68919.0,0.001642]
[1730133993927,0.145095,68920.0,68919.0,0.001642]
[1730133994577,0.3259201,68920.0,68919.0,0.001642]
[1730133994786,0.35365323,68920.0,68919.0,0.001642]
[1730133995014,0.47379984,68920.0,68919.0,0.001642]
[1730133995231,0.48079984,68920.0,68919.0,0.001642]
[1730133995465,0.34982028,68920.0,68919.0,0.001642]
[1730133995678,0.34282028,68920.0,68919.0,0.001642]
[1730133996110,0.36765736,68920.0,68919.0,0.001642]
[1730133996329,0.40287788,68920.0,68919.0,0.001642]
[1730133996553,0.51722027,68920.0,68919.0,0.001642]
[1730133996844,0.38888717,68920.0,68919.0,0.001642]
[1730133997060,0.3920479,68920.0,68919.0,0.001642]
[1730133997909,0.39212945,68920.0,68919.0,0.001642]
[1730133998119,0.40076576,68920.0,68919.0,0.001642]
[1730133998328,0.38676576,68920.0,68919.0,0.001642]
[1730133998545,0.39762794,68920.0,68919.0,0.001642]
[1730133998752,0.41162794,68920.0,68919.0,0.001642]
[1730133999419,0.38889481,68920.0,68919.0,1.001642]
[1730134000318,0.38887677,68920.0,68919.0,1.001642]
[1730134000821,0.21880307,68920.0,68919.0,1.001642]
[1730134001690,0.20480307,68920.0,68919.0,1.001642]
[1730134002361,0.21880307,68920.0,68919.0,1.001642]
[1730134002612,0.21880001,68920.0,68919.0,1.001642]
[1730134002825,0.30480001,68920.0,68919.0,1.001642]
[1730134003270,0.31880001,68920.0,68919.0,1.001642]
[1730134003693,0.32380001,68920.0,68919.0,1.001642]
[1730134003951,0.49387371,68920.0,68919.0,1.001642]
[1730134004182,0.63083188,68920.0,68919.0,1.001642]
[1730134004456,0.49887935,68920.0,68919.0,1.001642]
[1730134006162,0.48487935,68920.0,68919.0,1.001642]
[1730134007463,0.49887935,68920.0,68919.0,1.001642]
[1730134007678,0.48803833,68920.0,68919.0,1.001642]
[1730134007903,0.48487883,68920.0,68919.0,1.001642]
[1730134008448,0.64938264,68920.0,68919.0,1.001642]
[1730134008686,0.48487883,68920.0,68919.0,1.001642]
[1730134009149,0.49887883,68920.0,68919.0,1.001642]
[1730134009646,0.49887883,68920.0,68919.0,0.96894229]
[1730134011447,0.49888633,68920.0,68919.0,0.96894229]
[1730134012587,0.49888633,68920.0,68919.0,0.93992229]
[1730134012793,0.55542266,68920.0,68919.0,0.93992229]
[1730134013009,0.55542266,68920.0,68919.0,0.91090229]
[1730134013010,0.55742266,68920.0,68919.0,0.91090229]
[1730134013223,0.55742266,68920.0,68919.0,0.91254829]
[1730134013224,0.55542266,68920.0,68919.0,0.91254829]
[1730134013433,0.55542266,68920.0,68919.0,0.85450829]
[1730134013866,0.55542266,68920.0,68919.0,0.79646829]
[1730134013867,0.49888633,68920.0,68919.0,0.79646829]
[1730134014082,0.49888633,68920.0,68919.0,0.17508885]
[1730134014300,0.50088633,68920.0,68919.0,0.08802885]
[1730134014717,0.49888633,68920.0,68919.0,0.08802885]
[1730134014931,0.49888633,68920.0,68919.0,0.02998885]
[1730134015149,0.49888633,68920.0,68919.0,8.5e-07]
[1730134015150,0.6493941,68920.0,68919.0,8.5e-07]
[1730134015359,0.6493941,68920.0,68914.0,8.5e-07]
[1730134015360,0.510106,68915.0,68914.0,8.5e-07]
[1730134015590,0.72827848,68915.0,68914.0,8.5e-07]
[1730134015801,0.87024249,68915.0,68914.0,8.5e-07]
[1730134016100,0.262108,68914.0,68913.0,8.5e-07]
[1730134016321,0.30820678,68914.0,68913.0,8.5e-07]
[1730134017176,0.47828048,68914.0,68913.0,8.5e-07]
[1730134017392,0.47828048,68914.0,68904.0,0.001642]
[1730134017393,0.8502744,68905.0,68904.0,0.001642]
[1730134017626,0.55622578,68905.0,68904.0,0.001642]
[1730134017848,0.72829948,68905.0,68904.0,0.001642]
[1730134018053,0.72629948,68905.0,68904.0,0.001642]
[1730134018234,0.72829948,68905.0,68904.0,0.001642]
[1730134018473,0.87680329,68905.0,68904.0,0.001642]
[1730134018905,0.72629948,68905.0,68904.0,0.001642]
[1730134019349,0.72629948,68905.0,68904.0,0.080742]
[1730134019350,0.55622578,68905.0,68904.0,0.080742]
[1730134019860,0.30622578,68905.0,68904.0,0.080742]
[1730134020083,0.30997238,68905.0,68904.0,0.271342]
[1730134020569,0.06884538,68905.0,68904.0,0.271342]
[1730134020805,0.290238,68909.0,68905.0,0.2534]
[1730134021028,0.145125,68906.0,68905.0,0.1756]
[1730134021264,0.005,68917.0,68905.0,0.1756]
[1730134021265,0.580398,68918.0,68905.0,0.1756]
[1730134021484,0.290236,68910.0,68907.0,0.1756]
[1730134021730,0.21764207,68914.0,68905.0,0.1756]
[1730134021953,0.14512,68909.0,68908.0,0.2534]
[1730134022687,0.290208,68916.0,68906.0,0.0821]
[1730134022931,0.290208,68916.0,68909.0,0.1783]
[1730134022932,0.146118,68910.0,68909.0,0.1783]
[1730134023180,0.145118,68910.0,68909.0,0.2604]
[1730134024354,0.145118,68910.0,68909.0,0.2744]
[1730134025017,0.145116,68911.0,68910.0,0.2615]
[1730134026337,0.145116,68911.0,68910.0,0.2755]
[1730134026338,0.146114,68911.0,68910.0,0.2755]
[1730134026559,0.146114,68911.0,68910.0,0.2885]
[1730134026560,0.002,68911.0,68910.0,0.2885]
[1730134030241,0.002,68911.0,68910.0,0.433616]
[1730134031707,0.002,68911.0,68910.0,0.6036897]
[1730134031901,0.145095,68921.0,68914.0,0.1835]
[1730134032132,0.295159,68928.0,68915.0,0.0829]
[1730134032304,0.145095,68920.0,68915.0,0.0829]
[1730134032697,0.290187,68921.0,68915.0,0.0829]
[1730134032911,0.290179,68923.0,68915.0,0.0829]
[1730134033117,0.0135523,68922.0,68915.0,0.0829]
[1730134033348,0.145095,68920.0,68915.0,0.0829]
[1730134033588,0.3117393,68921.0,68915.0,0.0829]
[1730134033589,0.298187,68921.0,68915.0,0.0829]
[1730134033794,0.145098,68919.0,68915.0,0.0829]
[1730134033986,0.145098,68919.0,68915.0,0.0839]
[1730134034229,0.008,68921.0,68915.0,0.0839]
[1730134034449,0.145096,68920.0,68915.0,0.0839]
[1730134034901,0.145095,68920.0,68915.0,0.0839]
[1730134035431,0.145095,68920.0,68915.0,0.0829]
[1730134035672,0.006,68919.0,68915.0,0.0839]
[1730134036148,0.149095,68920.0,68915.0,0.0829]
[1730134036149,0.004,68920.0,68915.0,0.0829]
[1730134036390,0.011,68920.0,68915.0,0.0839]
[1730134036622,0.011,68920.0,68915.0,0.229004]
[1730134036853,0.004,68920.0,68916.0,0.290208]
[1730134037071,0.004,68920.0,68915.0,0.0829]
[1730134037300,0.006,68919.0,68916.0,0.145103]
[1730134037542,0.006,68919.0,68917.0,0.145101]
[1730134037756,0.009,68919.0,68916.0,0.290208]
[1730134038021,0.009,68919.0,68917.0,0.145102]
[1730134038241,0.21764207,68922.0,68915.0,0.0829]
[1730134038472,0.001,68920.0,68918.0,0.145099]
[1730134038692,0.001,68920.0,68917.0,0.145101]
[1730134039153,0.145085,68925.0,68916.0,0.436307]
[1730134039359,0.145085,68925.0,68915.0,0.0829]
[1730134039360,0.001,68922.0,68915.0,0.0929]
[1730134039579,0.001,68922.0,68916.0,0.43531]
[1730134039822,0.145086,68925.0,68916.0,0.145104]
[1730134040051,0.1700737,68922.0,68915.0,0.0829]
[1730134040263,0.4602787,68917.0,68907.0,0.0832]
[1730134040506,0.145116,68910.0,68908.0,0.21764207]
[1730134040718,0.145115,68911.0,68908.0,0.21764207]
[1730134040958,0.290216,68914.0,68907.0,0.0832]
[1730134041177,0.30376114,68913.0,68907.0,0.0832]
[1730134041399,0.290216,68914.0,68907.0,0.0832]
[1730134041400,0.290225,68912.0,68907.0,0.0832]
[1730134041626,0.145113,68912.0,68907.0,0.0832]
[1730134041872,0.145115,68911.0,68907.0,0.0832]
[1730134042082,0.146115,68911.0,68907.0,0.0832]
[1730134042295,0.145115,68911.0,68907.0,0.0832]
[1730134042527,0.145116,68910.0,68907.0,0.0832]
[1730134042958,0.003354,68909.0,68907.0,0.0832]
[1730134044537,0.003354,68909.0,68907.0,0.0842]
[1730134044975,0.148473,68909.0,68907.0,0.0832]
[1730134045196,0.148473,68909.0,68907.0,0.0842]
[1730134045420,0.148473,68909.0,68907.0,0.0832]
[1730134045859,0.148473,68909.0,68907.0,0.0842]
[1730134046288,0.151473,68909.0,68907.0,0.0842]
[1730134046947,0.151473,68909.0,68907.0,0.0832]
[1730134047164,0.151473,68909.0,68907.0,0.0842]
[1730134047812,0.01356565,68908.0,68907.0,0.0842]
[1730134048503,0.01356565,68908.0,68907.0,0.0832]
[1730134049139,0.01356565,68908.0,68907.0,0.0842]
[1730134049355,0.01556565,68908.0,68907.0,0.0842]
[1730134049782,0.01356565,68908.0,68907.0,0.0842]
[1730134050013,0.03530851,68908.0,68907.0,0.0842]
[1730134050225,0.03530851,68908.0,68907.0,0.084848]
[1730134050680,0.01356565,68908.0,68907.0,0.086848]
[1730134050910,0.01356565,68908.0,68907.0,0.084848]
[1730134051125,0.01556565,68908.0,68907.0,0.086848]
[1730134051520,0.03530825,68908.0,68907.0,0.084848]
[1730134051765,0.03530825,68908.0,68907.0,0.087848]
[1730134051986,0.01456565,68908.0,68907.0,0.087848]
[1730134053578,0.03630774,68908.0,68907.0,0.087848]
[1730134053823,0.01456565,68908.0,68907.0,0.087848]
[1730134054481,0.01458845,68908.0,68907.0,0.087848]
[1730134055393,0.15970945,68908.0,68907.0,0.004648]
[1730134055859,0.1814516,68908.0,68907.0,0.004648]
[1730134056106,0.19504083,68908.0,68907.0,0.004648]
[1730134056381,0.21091243,68908.0,68907.0,0.004648]
[1730134056614,0.52076992,68908.0,68907.0,0.004648]
[1730134056817,0.52077063,68908.0,68907.0,0.004648]
[1730134057048,0.49712227,68908.0,68907.0,0.001648]
[1730134057262,0.37996711,68908.0,68907.0,0.001648]
[1730134057481,0.40661547,68908.0,68907.0,0.001648]
[1730134057897,0.40261547,68908.0,68907.0,0.001648]
[1730134058319,0.40261547,68908.0,68907.0,0.002648]
[1730134058320,0.39196711,68908.0,68907.0,0.002648]
[1730134058612,0.35876491,68908.0,68907.0,0.003648]
[1730134058824,0.38320123,68908.0,68907.0,0.003648]
[1730134059030,0.23487541,68908.0,68907.0,0.003648]
[1730134059239,0.40493009,68908.0,68907.0,0.003648]
[1730134059937,0.4276701,68908.0,68907.0,0.003648]
[1730134060172,0.40493009,68908.0,68907.0,0.003648]
[1730134061752,0.37776899,68908.0,68907.0,0.003648]
[1730134061968,0.39132902,68908.0,68907.0,0.003648]
[1730134062175,0.40490198,68908.0,68907.0,0.003648]
[1730134063692,0.42752306,68908.0,68907.0,0.003648]
[1730134063900,0.2348473,68908.0,68907.0,0.003648]
[1730134064118,0.25746838,68908.0,68907.0,0.003648]
[1730134064328,0.28020879,68908.0,68907.0,0.003648]
[1730134064542,0.25758771,68908.0,68907.0,0.003648]
[1730134065244,0.28020686,68908.0,68907.0,0.003648]
[1730134065471,0.2348473,68908.0,68907.0,0.003648]
[1730134065672,0.25746645,68908.0,68907.0,0.003648]
[1730134065883,0.2574586,68908.0,68907.0,0.003648]
[1730134066324,0.23483945,68908.0,68907.0,0.003648]
[1730134066765,0.34648134,68908.0,68907.0,0.003648]
[1730134067192,1.05500079,68908.0,68907.0,0.003648]
[1730134067407,1.06500079,68908.0,68907.0,0.003648]
[1730134067860,0.9533589,68908.0,68907.0,0.003648]
[1730134068287,1.06500079,68908.0,68907.0,0.003648]
[1730134068714,1.05142783,68908.0,68907.0,0.003648]
[1730134069392,1.13402783,68908.0,68907.0,0.003648]
[1730134070273,1.12102783,68908.0,68907.0,0.002648]
[1730134070736,1.14351932,68908.0,68907.0,0.003648]
[1730134070942,0.145182,68879.0,68868.0,0.078]
[1730134071163,0.15875465,68879.0,68868.0,0.078]
[1730134071378,0.145192,68874.0,68868.0,0.078]
[1730134071589,0.15876465,68874.0,68868.0,0.078]
[1730134071803,0.145192,68874.0,68868.0,0.078]
[1730134073520,0.150192,68874.0,68868.0,0.078]
[1730134073926,0.145192,68874.0,68868.0,0.078]
[1730134074395,0.148192,68874.0,68868.0,0.078]
[1730134074855,0.145192,68874.0,68868.0,0.078]
[1730134075104,0.149192,68874.0,68868.0,0.078]
[1730134076249,0.145192,68874.0,68868.0,0.078]
[1730134076485,0.147192,68874.0,68868.0,0.078]
[1730134076726,0.153192,68874.0,68868.0,0.078]
[1730134076953,0.151192,68874.0,68868.0,0.078]
[1730134077177,0.26895107,68874.0,68867.0,0.001644]
[1730134077402,0.27195107,68874.0,68867.0,0.001644]
[1730134077641,0.16674528,68874.0,68867.0,0.001644]
[1730134077850,0.16774528,68874.0,68867.0,0.001644]
[1730134078061,0.16374528,68874.0,68867.0,0.001644]
[1730134078274,0.17274528,68874.0,68867.0,0.001644]
[1730134079377,0.16374528,68874.0,68867.0,0.001644]
[1730134079596,0.16374528,68874.0,68873.0,0.079142]
[1730134079597,0.15874528,68874.0,68873.0,0.079142]
[1730134079852,0.15874528,68874.0,68873.0,0.44597117]
[1730134079853,0.154192,68874.0,68873.0,0.44597117]
[1730134080094,0.21764207,68887.0,68874.0,0.2741]
[1730134080328,0.21764207,68880.0,68877.0,0.17022917]
[1730134080559,0.21764207,68887.0,68878.0,0.2746]
[1730134080757,0.145182,68879.0,68878.0,0.42510381]
[1730134081626,0.145182,68879.0,68878.0,0.2746]
[1730134083221,0.15873722,68879.0,68878.0,0.2746]
[1730134083651,0.145182,68879.0,68878.0,0.2746]
[1730134083877,0.007,68879.0,68878.0,0.2746]
[1730134084096,0.005,68879.0,68878.0,0.59533298]
[1730134084587,0.22264207,68896.0,68879.0,0.2712]
[1730134084588,0.02274636,68891.0,68879.0,0.2712]
[1730134084818,0.21764207,68889.0,68888.0,0.17022917]
[1730134085051,0.21764207,68896.0,68891.0,0.1962]
[1730134085300,0.21764207,68896.0,68892.0,0.15050381]
[1730134085301,0.01355836,68895.0,68892.0,0.15050381]
[1730134085521,0.004177,68909.0,68892.0,0.15050381]
[1730134085522,0.145128,68905.0,68896.0,0.145145]
[1730134085734,0.004177,68909.0,68898.0,0.1941]
[1730134085951,0.004177,68909.0,68906.0,0.17022917]
[1730134086170,0.004177,68909.0,68907.0,0.145121]
[1730134086639,0.004177,68909.0,68906.0,0.31535217]
[1730134087041,0.004177,68909.0,68907.0,0.145122]
[1730134087258,0.004177,68909.0,68907.0,0.146122]
[1730134087702,0.004177,68909.0,68906.0,0.31535417]
[1730134087916,0.001,68907.0,68906.0,0.32235417]
[1730134089081,0.004177,68909.0,68908.0,0.145121]
[1730134089331,0.005177,68909.0,68908.0,0.29562481]
[1730134089803,0.004177,68909.0,68908.0,0.29562481]
[1730134090024,0.004177,68909.0,68908.0,0.48982481]
[1730134090954,0.006177,68909.0,68908.0,0.48982481]
[1730134092251,0.006177,68909.0,68908.0,0.56712481]
[1730134092474,0.005177,68909.0,68908.0,0.56512481]
[1730134093625,0.004177,68909.0,68908.0,0.56512481]
[1730134093853,0.006177,68909.0,68908.0,0.56512481]
[1730134096512,0.006177,68909.0,68908.0,0.73535398]
[1730134099410,0.005177,68909.0,68908.0,0.73535398]
[1730134099693,0.004177,68909.0,68908.0,0.29562481]
[1730134099907,0.006177,68909.0,68908.0,0.145121]
[1730134100112,0.005177,68909.0,68908.0,0.145121]
[1730134100530,0.006177,68909.0,68908.0,0.145121]
[1730134101175,0.005177,68909.0,68908.0,0.145121]
[1730134101606,0.006177,68909.0,68908.0,0.145121]
[1730134101975,0.005177,68909.0,68908.0,0.145121]
[1730134102447,0.006177,68909.0,68908.0,0.145121]